[Event "IRT Club Caissa 2019"]
[Site "Guatemala"]
[Date "2019.01.10"]
[Round "4"]
[White "Lozano, Ricardo"]
[Black "Cuenca Jimenez, Jose Fernando"]
[Result "0-1"]
[ECO "A02"]
[WhiteElo "2017"]
[BlackElo "2512"]
[Annotator "ChessBase"]
[PlyCount "66"]
[EventDate "2019.01.09"]
[EventType "swiss"]
[EventCountry "GUA"]
[SourceTitle "playchess.com"]
[Source "ChessBase"]
[SourceQuality "1"]
[TimeControl "5400+30"]

1. f4 {[%emt 0:03:50]} c5 {[%emt 0:01:19]} 2. e4 {[%emt 0:01:15]} Nc6 {[%emt 0:02:09]} 3. Nf3 {[%emt 0:00:13]} g6 {[%emt 0:00:08]} 4. Be2 {[%emt 0:00:17]} d5 {[%emt 0:02:03]} 5. d3 {[%emt 0:00:52]} Bg7 {[%emt 0:00:27]} 6. O-O {[%emt 0:00:28]} e6 {[%emt 0:00:42]} 7. Nc3 {[%emt 0:02:20]} Nge7 {[%emt 0:00:29]} 8. Qe1 {[%emt 0:01:33]} b6 {[%emt 0:02:29]} 9. Qg3 {[%emt 0:00:16]} Ba6 {[%emt 0:02:01]} 10. Ne5 {[%emt 0:02:12]} Nd4 {[%emt 0:03:18]} 11. Bd1 {[%emt 0:01:01]} O-O {[%emt 0:04:29]} 12. Qh3 {[%emt 0:02:49]} b5 {[%emt 0:03:58]} 13. Re1 {[%emt 0:04:34]} b4 {[%emt 0:02:30]} 14. Ne2 {[%emt 0:00:31]} dxe4 {[%emt 0:03:58]} 15. Nxd4 {[%emt 0:02:34]} Qxd4+ {[%emt 0:00:28]} 16. Qe3 {[%emt 0:06:49]} exd3 {[%emt 0:02:21]} 17. Qxd4 {[%emt 0:00:21]} cxd4 {[%emt 0:00:04]} 18. Nxd3 {[%emt 0:00:56]} Rab8 {[%emt 0:02:50]} 19. Nc5 {[%emt 0:00:27]} Bb5 {[%emt 0:00:56]} 20. a4 {[%emt 0:04:00]} Bc6 {[%emt 0:01:26]} 21. Be2 {[%emt 0:02:26]} a5 {[%emt 0:02:54]} 22. Bc4 {[%emt 0:01:19]} Rfc8 {[%emt 0:02:33]} 23. Nxe6 {[%emt 0:00:20]} fxe6 {[%emt 0:00:10]} 24. Bxe6+ {[%emt 0:01:13]} Kf8 {[%emt 0:00:03]} 25. Bxc8 {[%emt 0:00:18]} Rxc8 {[%emt 0:00:04]} 26. g4 {[%emt 0:03:33]} Bf3 {[%emt 0:04:21]} 27. f5 {[%emt 0:02:07]} Bxg4 {[%emt 0:01:33]} 28. fxg6 {[%emt 0:00:23]} Nxg6 {[%emt 0:01:01]} 29. Bg5 {[%emt 0:01:31]} Rxc2 {[%emt 0:02:24]} 30. Rf1+ {[%emt 0:00:13]} Kg8 {[%emt 0:00:29]} 31. Rae1 {[%emt 0:00:23]} Be2 {[%emt 0:00:20]} 32. Rc1 {[%emt 0:03:01]} d3 {[%emt 0:01:40]} 33. Rxc2 {[%emt 0:00:38]} Bd4+ {[%emt 0:01:06]} 0-1

[Event "IRT Club Caissa 2019"]
[Site "Guatemala"]
[Date "2019.01.10"]
[Round "4"]
[White "Ajanel Xiroj, Genry"]
[Black "Molina Hun, Hieysson"]
[Result "1/2-1/2"]
[ECO "A16"]
[WhiteElo "1647"]
[BlackElo "1401"]
[Annotator "NA RC"]
[PlyCount "88"]
[EventDate "2019.01.09"]
[EventType "swiss"]
[EventCountry "GUA"]
[SourceTitle "playchess.com"]
[Source "ChessBase"]
[SourceQuality "1"]
[TimeControl "5400+30"]

1. c4 {[%emt 0:03:53]} Nf6 {[%emt 0:00:00]} 2. Nc3 {[%emt 0:00:42]} g6 {[%emt 0:00:07]} 3. Nf3 {[%emt 0:00:30]} Bg7 {[%emt 0:00:24]} 4. g3 {[%emt 0:01:01]} O-O {[%emt 0:01:42]} 5. Bg2 {[%emt 0:01:35]} c5 {[%emt 0:03:45]} 6. O-O {[%emt 0:02:58]} d6 {[%emt 0:02:47]} 7. Rb1 {[%emt 0:02:33]} Nc6 {[%emt 0:06:17]} 8. a3 {[%emt 0:09:09]} a5 {[%emt 0:06:12]} 9. Nb5 {[%emt 0:03:53]} Bf5 {[%emt 0:09:57]} 10. d3 {[%emt 0:08:24]} Qd7 {[%emt 0:07:35]} 11. Re1 {[%emt 0:10:52]} Ne8 {[%emt 0:04:09]} 12. b3 {[%emt 0:04:31]} Nc7 {[%emt 0:05:07]} 13. Nxc7 {[%emt 0:06:49]} Qxc7 {[%emt 0:02:26]} 14. Bb2 {[%emt 0:00:16]} e5 {[%emt 0:00:37]} 15. e4 {[%emt 0:04:30]} Bg4 {[%emt 0:02:52]} 16. h3 {[%emt 0:02:11]} Bxf3 {[%emt 0:01:58]} 17. Bxf3 {[%emt 0:02:26]} Qe7 {[%emt 0:00:54]} 18. Qd2 {[%emt 0:01:02]} h5 {[%emt 0:00:35]} 19. Bc3 {[%emt 0:01:01]} a4 {[%emt 0:09:58]} 20. b4 {[%emt 0:03:18]} b6 {[%emt 0:00:34]} 21. Rb2 {[%emt 0:02:10]} Rfb8 {[%emt 0:00:38]} 22. Reb1 {[%emt 0:00:19]} Qc7 {[%emt 0:00:08]} 23. bxc5 {[%emt 0:02:36]} bxc5 {[%emt 0:00:10]} 24. Rb5 {[%emt 0:00:19]} Na7 {[%emt 0:03:30]} 25. Rxb8+ {[%emt 0:00:50]} Rxb8 {[%emt 0:00:05]} 26. Rxb8+ {[%emt 0:00:13]} Qxb8 {[%emt 0:00:04]} 27. Qb2 {[%emt 0:00:14]} Qb3 {[%emt 0:00:45]} 28. Be2 {[%emt 0:02:15]} Nc6 {[%emt 0:00:53]} 29. Qxb3 {[%emt 0:01:44]} axb3 {[%emt 0:00:05]} 30. Bd1 {[%emt 0:00:34]} Nd4 {[%emt 0:00:04]} 31. Bxd4 {[%emt 0:01:12]} exd4 {[%emt 0:00:04]} 32. Bxb3 {[%emt 0:00:12]} Bf6 {[%emt 0:00:03]} 33. Kg2 {[%emt 0:00:17]} g5 34. f4 {[%emt 0:02:59]} Kg7 {[%emt 0:04:20]} 35. Kf3 {[%emt 0:00:16]} Kg6 {[%emt 0:01:00]} 36. fxg5 {[%emt 0:00:35]} Kxg5 {[%emt 0:00:19]} 37. h4+ {[%emt 0:00:10]} Kg6 {[%emt 0:00:04]} 38. Kf4 {[%emt 0:00:07]} Bd8 {[%emt 0:02:28]} 39. Kf3 {[%emt 0:01:02]} f6 {[%emt 0:00:08]} 40. Kf4 {[%emt 0:00:04]} Ba5 {[%emt 0:00:08]} 41. Bc2 {[%emt 0:01:03]} Bd8 {[%emt 0:00:05]} 42. Bb3 {[%emt 0:00:16]} Ba5 {[%emt 0:00:05]} 43. Bc2 {[%emt 0:00:04]} Bd8 {[%emt 0:00:03]} 44. Bb3 {[%emt 0:00:09]} Ba5 {[%emt 0:00:04]} 1/2-1/2

[Event "IRT Club Caissa 2019"]
[Site "Guatemala"]
[Date "2019.01.11"]
[Round "5"]
[White "Ramirez Marino, Richard Daniel"]
[Black "Juarez Flores, Carlos A."]
[Result "0-1"]
[ECO "B15"]
[WhiteElo "2080"]
[BlackElo "2377"]
[Annotator "NA"]
[PlyCount "117"]
[EventDate "2019.01.09"]
[EventType "swiss"]
[EventCountry "GUA"]
[SourceTitle "playchess.com"]
[Source "ChessBase"]
[SourceQuality "1"]
[TimeControl "5400+30"]

1. e4 {[%emt 0:01:08]} c6 {[%emt 0:00:21]} 2. d4 {[%emt 0:02:17]} d5 {[%emt 0:00:05]} 3. Nc3 {[%emt 0:00:04]} b5 {[%emt 0:00:19]} 4. a3 {[%emt 0:04:31]} dxe4 {[%emt 0:00:07]} 5. Nxe4 {[%emt 0:00:04]} Nf6 {[%emt 0:00:02] B15: Caro-Kann: 3 Nc3: 3...g6 and 3...dxe4 4 Nxe4 Nf6 5 Nxf6+ exf6} 6. Nxf6+ {[%emt 0:02:08]} (6. Bd3 g6 7. Bg5 Bg7 8. Nf3 O-O 9. Qd2 Bf5 10. Nxf6+ exf6 11. Be3 Bxd3 12. Qxd3 Nd7 13. d5 {0-1 (41) Belyakov,B (2487)-Howell,D (2644) Doha 2016}) 6... exf6 {[%emt 0:00:05]} 7. Ne2 {[%emt 0:03:25]} Bd6 {[%emt 0:00:51]} 8. g3 $146 {[%emt 0:04:17]} ({Predecessor:} 8. Ng3 O-O 9. Be2 Be6 10. O-O Nd7 11. Bf3 Qc7 12. Re1 Nb6 13. b3 Bxg3 14. hxg3 {½-½ (56) Ginovart,A (1802)-Roque,G (1583) Montlucon 2011}) 8... Be6 {[%emt 0:07:30]} 9. Bg2 {[%emt 0:00:49]} Qd7 {[%emt 0:02:06]} 10. Bf4 {[%emt 0:07:27]} Na6 {[%emt 0:04:15]} 11. O-O {[%emt 0:05:29]} Nc7 {[%emt 0:01:18]} 12. Bxd6 {[%emt 0:01:47]} Qxd6 {[%emt 0:00:03]} 13. Nf4 {[%emt 0:01:39]} O-O {[%emt 0:00:39]} 14. Qf3 {[%emt 0:02:49]} Bd5 {[%emt 0:03:07]} 15. Nxd5 {[%emt 0:02:06]} Nxd5 {[%emt 0:00:04]} 16. b3 {[%emt 0:01:38]} Rac8 {[%emt 0:01:59]} 17. c4 {[%emt 0:14:19]} Ne7 {[%emt 0:00:57]} 18. Rfe1 {[%emt 0:01:49]} bxc4 {[%emt 0:01:27]} 19. Qe4 {[%emt 0:03:05]} Rc7 {[%emt 0:03:21]} 20. bxc4 {[%emt 0:00:12]} Rd8 {[%emt 0:00:10]} 21. c5 {[%emt 0:06:12]} Qxd4 {[%emt 0:02:30]} 22. Qxd4 {[%emt 0:00:17]} Rxd4 {[%emt 0:00:06]} 23. Rad1 {[%emt 0:00:14]} Rxd1 {[%emt 0:03:00]} 24. Rxd1 {[%emt 0:00:11]} g6 {[%emt 0:01:51]} 25. Rd6 {[%emt 0:04:40]} Kg7 {[%emt 0:01:27]} 26. a4 {[%emt 0:00:24]} a5 {[%emt 0:06:20]} 27. Rd8 {[%emt 0:03:23]} Nc8 {[%emt 0:13:14]} 28. g4 {[%emt 0:01:24]} Ne7 {[%emt 0:04:10]} 29. Ra8 {[%emt 0:03:56]} Rb7 {[%emt 0:00:07]} 30. h3 {[%emt 0:00:39]} Rb1+ {[%emt 0:05:41]} 31. Kh2 {[%emt 0:00:19]} Rb2 {[%emt 0:02:59]} 32. Kg1 $11 {[%emt 0:03:28]} (32. Ra7 $11) 32... Rc2 {[%emt 0:06:33]} 33. Rxa5 {[%emt 0:00:21]} f5 {[%emt 0:00:09]} 34. g5 {[%emt 0:02:35]} f4 {[%emt 0:02:30]} 35. Be4 {[%emt 0:04:15]} Rc4 {[%emt 0:01:58]} 36. f3 {[%emt 0:00:11]} f5 {[%emt 0:04:55]} 37. Bd3 {[%emt 0:02:57]} Rc3 {[%emt 0:00:41]} 38. Be2 {[%emt 0:00:14]} Kf7 {[%emt 0:02:09]} 39. Ra7 {[%emt 0:01:52]} Rxc5 {[%emt 0:00:37]} 40. a5 {[%emt 0:00:12]} Ke6 {[%emt 0:03:21]} 41. a6 {[%emt 0:00:40]} Ra5 {[%emt 0:01:13]} 42. Kf2 {[%emt 0:02:05]} Kd6 {[%emt 0:01:03]} 43. Ke1 {[%emt 0:01:44]} Ra1+ {[%emt 0:02:01]} 44. Kd2 {[%emt 0:00:16]} Ra2+ {[%emt 0:00:03]} 45. Ke1 {[%emt 0:00:13]} c5 {[%emt 0:00:31]} 46. Bb5 {[%emt 0:02:54]} Nc6 {[%emt 0:05:06]} 47. Rxh7 {[%emt 0:01:18]} Ra1+ {[%emt 0:01:22]} 48. Kf2 {[%emt 0:01:38]} Ra2+ {[%emt 0:01:26]} 49. Ke1 {[%emt 0:00:17]} Ne5 {[%emt 0:01:00]} 50. a7 {[%emt 0:01:08]} c4 {[%emt 0:02:09]} 51. Kd1 {[%emt 0:02:21]} Kc5 {[%emt 0:00:27]} 52. Rb7 {[%emt 0:01:02]} Nxf3 {[%emt 0:00:54]} 53. Be8 {[%emt 0:01:07]} Ne5 {[%emt 0:00:31]} 54. Rc7+ {[%emt 0:00:56]} Kd4 {[%emt 0:00:18]} 55. Bc6 {[%emt 0:00:31]} Nxc6 {[%emt 0:01:37]} 56. Rxc6 {[%emt 0:00:04]} f3 {[%emt 0:00:24]} 57. Ke1 {[%emt 0:00:25]} Ke3 {[%emt 0:00:53]} 58. Re6+ {[%emt 0:00:54]} Kf4 {[%emt 0:00:02]} 59. Kf1 {[%emt 0:00:38] Ke5} 0-1

[Event "IRT Club Caissa 2019"]
[Site "Guatemala"]
[Date "2019.01.11"]
[Round "6"]
[White "Zaragatski, Ilja"]
[Black "Gongora Montes, Benjamin"]
[Result "1-0"]
[ECO "A36"]
[WhiteElo "2465"]
[BlackElo "2143"]
[Annotator "ChessBase"]
[PlyCount "71"]
[EventDate "2019.01.09"]
[EventType "swiss"]
[EventCountry "GUA"]
[SourceTitle "playchess.com"]
[Source "ChessBase"]
[SourceQuality "1"]
[TimeControl "5400+30"]

1. c4 {[%emt 0:00:00]} g6 {[%emt 0:00:00]} 2. g3 {[%emt 0:00:00]} Bg7 {[%emt 0:00:24]} 3. Bg2 {[%emt 0:00:00]} c5 {[%emt 0:00:23]} 4. Nc3 {[%emt 0:00:00]} Nc6 {[%emt 0:00:28]} 5. a3 {[%emt 0:00:00]} e6 {[%emt 0:01:30]} 6. Rb1 {[%emt 0:00:01]} Nge7 {[%emt 0:00:24]} 7. b4 {[%emt 0:00:08]} d6 {[%emt 0:00:27]} 8. Nf3 {[%emt 0:00:17]} O-O {[%emt 0:01:08]} 9. O-O {[%emt 0:02:14]} b6 {[%emt 0:01:35]} 10. Qb3 {[%emt 0:00:17]} Bb7 {[%emt 0:03:07]} 11. Bb2 {[%emt 0:00:19]} Rb8 {[%emt 0:11:33]} 12. e3 {[%emt 0:00:35]} Qd7 {[%emt 0:27:52]} 13. Rfd1 {[%emt 0:00:46]} cxb4 {[%emt 0:07:03]} 14. axb4 {[%emt 0:00:20]} a5 {[%emt 0:00:14]} 15. Na2 {[%emt 0:13:40]} d5 {[%emt 0:06:32]} 16. Bxg7 {[%emt 0:07:01]} Kxg7 {[%emt 0:00:19]} 17. b5 {[%emt 0:01:09]} Nd8 {[%emt 0:01:42]} 18. Qc3+ {[%emt 0:09:35]} f6 {[%emt 0:01:21]} 19. c5 {[%emt 0:00:07]} bxc5 {[%emt 0:00:39]} 20. Qxc5 {[%emt 0:00:10]} Nf7 {[%emt 0:00:52]} 21. Nc3 {[%emt 0:01:08]} e5 {[%emt 0:01:29]} 22. d4 {[%emt 0:02:15]} e4 {[%emt 0:12:33]} 23. Nd2 {[%emt 0:00:54]} Ng5 {[%emt 0:00:30]} 24. Rdc1 {[%emt 0:04:18]} Ne6 {[%emt 0:07:32]} 25. Qa3 {[%emt 0:00:17]} f5 {[%emt 0:00:13]} 26. Na4 {[%emt 0:00:55]} Rfc8 {[%emt 0:01:43]} 27. Nc5 {[%emt 0:05:28]} Qd6 {[%emt 0:00:40]} 28. Nxe6+ {[%emt 0:00:42]} Qxe6 {[%emt 0:00:05]} 29. Qxa5 {[%emt 0:00:13]} Ra8 {[%emt 0:01:02]} 30. Qb4 {[%emt 0:00:09]} g5 {[%emt 0:01:54]} 31. Nb3 {[%emt 0:03:07]} Rxc1+ {[%emt 0:00:31]} 32. Rxc1 {[%emt 0:00:11]} Rc8 {[%emt 0:01:09]} 33. Nc5 {[%emt 0:03:05]} Qb6 {[%emt 0:02:58]} 34. Ra1 {[%emt 0:02:31]} Ra8 {[%emt 0:03:35]} 35. Rxa8 {[%emt 0:02:25]} Bxa8 {[%emt 0:00:04]} 36. Nxe4 {[%emt 0:03:29]} 1-0

[Event "IRT Club Caissa 2019"]
[Site "Guatemala"]
[Date "2019.01.12"]
[Round "7"]
[White "Juarez Flores, Carlos A."]
[Black "Juarez Flores, Gustavo E."]
[Result "1-0"]
[ECO "A45"]
[WhiteElo "2377"]
[BlackElo "2060"]
[Annotator "NA"]
[PlyCount "60"]
[EventDate "2019.01.09"]
[EventType "swiss"]
[EventCountry "GUA"]
[SourceTitle "playchess.com"]
[Source "ChessBase"]
[SourceQuality "1"]
[TimeControl "5400+30"]

1. d4 {[%emt 0:00:00]} Nf6 {[%emt 0:03:28]} 2. g3 {[%emt 0:00:47]} g6 {[%emt 0:00:09]} 3. Bg2 {[%emt 0:00:08]} Bg7 {[%emt 0:00:12]} 4. c4 {[%emt 0:00:28]} d6 {[%emt 0:01:06]} 5. Nf3 {[%emt 0:00:18]} O-O {[%emt 0:00:55]} 6. O-O {[%emt 0:00:19]} Nbd7 {[%emt 0:02:23]} 7. b3 {[%emt 0:00:35]} e5 {[%emt 0:01:01]} 8. Bb2 {[%emt 0:00:42]} exd4 {[%emt 0:01:08]} 9. Nxd4 {[%emt 0:00:11]} Re8 {[%emt 0:00:33]} 10. Nc3 {[%emt 0:00:17]} Nc5 {[%emt 0:01:32]} 11. Qc2 {[%emt 0:01:58]} a5 {[%emt 0:01:04]} 12. Rad1 {[%emt 0:02:23]} Bd7 {[%emt 0:02:15]} 13. Rfe1 {[%emt 0:03:22]} Qc8 {[%emt 0:00:41]} 14. Nd5 {[%emt 0:12:32]} Nxd5 {[%emt 0:06:22]} 15. cxd5 {[%emt 0:00:22]} Re7 {[%emt 0:04:14]} 16. e4 {[%emt 0:05:20]} Qf8 {[%emt 0:24:55]} 17. h3 {[%emt 0:04:07]} Rae8 {[%emt 0:02:34]} 18. Bc3 {[%emt 0:00:10]} b6 {[%emt 0:00:50]} 19. Kh2 {[%emt 0:27:16]} h6 {[%emt 0:08:18]} 20. Re2 {[%emt 0:06:46]} Kh7 {[%emt 0:01:48]} 21. Rde1 {[%emt 0:02:32]} Qh8 {[%emt 0:02:05]} 22. Qd2 {[%emt 0:01:13]} Bc8 {[%emt 0:07:42]} 23. Re3 {[%emt 0:00:28]} Bd7 {[%emt 0:01:36]} 24. a3 {[%emt 0:01:57]} a4 {[%emt 0:01:08]} 25. b4 {[%emt 0:00:47]} Nb3 {[%emt 0:00:58]} 26. Nxb3 {[%emt 0:00:13]} axb3 {[%emt 0:00:10]} 27. Bxg7 {[%emt 0:00:33]} Qxg7 {[%emt 0:00:17]} 28. Rxb3 {[%emt 0:00:04]} f5 {[%emt 0:01:36]} 29. Rc1 {[%emt 0:01:08]} Bc8 {[%emt 0:04:27]} 30. exf5 {[%emt 0:03:45]} Kg8 1-0